[Event "Early-Titled-Tuesday-Blitz-May-07-2024"]
[Site "Chess.com"]
[Date "2024.05.07"]
[Round "10"]
[White "NM_Antelacus"]
[Black "PonyQueen07"]
[Result "0-1"]
[WhiteElo "2241"]
[BlackElo "2148"]
[TimeControl "180+1"]
[EndTime "10:03:10 PDT"]
[Termination "PonyQueen07 won on time"]

1. e4 {[%clk 0:03:00.9]} 1... c5 {[%clk 0:02:59.8]} 2. Nf3 {[%clk 0:03:00.6]}
2... Nc6 {[%clk 0:03:00.2]} 3. Bb5 {[%clk 0:02:59.5]} 3... e5 {[%clk 0:03:00]}
4. O-O {[%clk 0:02:58.2]} 4... Bd6 {[%clk 0:02:59.9]} 5. d3 {[%clk 0:02:55.6]}
5... Nge7 {[%clk 0:02:57.5]} 6. Nbd2 {[%clk 0:02:54.3]} 6... Bc7 {[%clk
0:02:55.4]} 7. Nc4 {[%clk 0:02:45.9]} 7... Ng6 {[%clk 0:02:53.3]} 8. Ne3 {[%clk
0:02:39.7]} 8... d6 {[%clk 0:02:50.3]} 9. c3 {[%clk 0:02:37]} 9... O-O {[%clk
0:02:49.5]} 10. d4 {[%clk 0:02:35]} 10... cxd4 {[%clk 0:02:48.9]} 11. cxd4
{[%clk 0:02:35.1]} 11... exd4 {[%clk 0:02:36.9]} 12. Nxd4 {[%clk 0:02:34.8]}
12... Nxd4 {[%clk 0:02:34.9]} 13. Qxd4 {[%clk 0:02:34.6]} 13... Bb6 {[%clk
0:02:33.7]} 14. Qd1 {[%clk 0:02:23.8]} 14... Be6 {[%clk 0:02:20.5]} 15. Be2
{[%clk 0:01:53]} 15... Nf4 {[%clk 0:01:53.5]} 16. Bg4 {[%clk 0:01:48.4]} 16...
Bxg4 {[%clk 0:01:35.7]} 17. Qxg4 {[%clk 0:01:45.2]} 17... Ng6 {[%clk 0:01:23.4]}
18. Nd5 {[%clk 0:01:34.2]} 18... Bd4 {[%clk 0:00:36.9]} 19. Rb1 {[%clk
0:01:17.8]} 19... Qc8 {[%clk 0:00:20.6]} 20. Qxc8 {[%clk 0:00:48.5]} 20... Raxc8
{[%clk 0:00:16.6]} 21. Be3 {[%clk 0:00:47.2]} 21... Bxe3 {[%clk 0:00:15.8]} 22.
Nxe3 {[%clk 0:00:46.3]} 22... Nf4 {[%clk 0:00:09.2]} 23. g3 {[%clk 0:00:41.4]}
23... Ne2+ {[%clk 0:00:04.9]} 24. Kg2 {[%clk 0:00:41.6]} 24... Rfd8 {[%clk
0:00:03.2]} 25. Rfe1 {[%clk 0:00:35.7]} 25... Nd4 {[%clk 0:00:03.4]} 26. Red1
{[%clk 0:00:34]} 26... Ne6 {[%clk 0:00:03]} 27. Rbc1 {[%clk 0:00:31]} 27... Rxc1
{[%clk 0:00:02.6]} 28. Rxc1 {[%clk 0:00:30.7]} 28... g6 {[%clk 0:00:02.3]} 29.
Nd5 {[%clk 0:00:27.4]} 29... Nc5 {[%clk 0:00:01.8]} 30. f3 {[%clk 0:00:26.6]}
30... Kg7 {[%clk 0:00:02]} 31. Kf1 {[%clk 0:00:17]} 31... Nd3 {[%clk 0:00:01.9]}
32. Rc2 {[%clk 0:00:15.2]} 32... Nc5 {[%clk 0:00:02]} 33. Ke2 {[%clk 0:00:14.9]}
33... Ne6 {[%clk 0:00:02]} 34. Ke3 {[%clk 0:00:14.6]} 34... b6 {[%clk
0:00:01.6]} 35. b4 {[%clk 0:00:14.1]} 35... Rd7 {[%clk 0:00:01.8]} 36. Rc8
{[%clk 0:00:12.8]} 36... Rb7 {[%clk 0:00:01.3]} 37. a4 {[%clk 0:00:11.9]} 37...
a6 {[%clk 0:00:01.1]} 38. f4 {[%clk 0:00:11.1]} 38... a5 {[%clk 0:00:01.4]} 39.
b5 {[%clk 0:00:09.6]} 39... Nc5 {[%clk 0:00:01.6]} 40. Nc3 {[%clk 0:00:07.6]}
40... Re7 {[%clk 0:00:01.2]} 41. Kd4 {[%clk 0:00:06.9]} 41... Ne6+ {[%clk
0:00:01]} 42. Kd5 {[%clk 0:00:04.1]} 42... Nc5 {[%clk 0:00:01.7]} 43. Rc6 {[%clk
0:00:01.5]} 43... f5 {[%clk 0:00:01.9]} 44. e5 {[%clk 0:00:01.1]} 44... dxe5
{[%clk 0:00:02]} 45. fxe5 {[%clk 0:00:01.4]} 45... Rd7+ {[%clk 0:00:02.4]} 0-1

[Event "Early-Titled-Tuesday-Blitz-May-07-2024"]
[Site "Chess.com"]
[Date "2024.05.07"]
[Round "10"]
[White "vaishali2001"]
[Black "MathiasWomacka"]
[Result "1-0"]
[WhiteElo "2697"]
[BlackElo "2532"]
[TimeControl "180+1"]
[EndTime "10:03:12 PDT"]
[Termination "vaishali2001 won on time"]

1. e4 {[%clk 0:02:59.5]} 1... c5 {[%clk 0:02:59.5]} 2. Nf3 {[%clk 0:02:58.7]}
2... d6 {[%clk 0:02:59.4]} 3. d4 {[%clk 0:02:58.4]} 3... cxd4 {[%clk 0:03:00.3]}
4. Nxd4 {[%clk 0:02:59.1]} 4... Nf6 {[%clk 0:03:00.2]} 5. Nc3 {[%clk 0:02:59.4]}
5... a6 {[%clk 0:03:00.3]} 6. h3 {[%clk 0:02:59.4]} 6... e6 {[%clk 0:02:56.5]}
7. g4 {[%clk 0:02:59.5]} 7... b5 {[%clk 0:02:56.4]} 8. Bg2 {[%clk 0:02:57]} 8...
Bb7 {[%clk 0:02:56]} 9. g5 {[%clk 0:02:54.2]} 9... Nfd7 {[%clk 0:02:53.5]} 10.
h4 {[%clk 0:02:54.8]} 10... Be7 {[%clk 0:02:45.3]} 11. Be3 {[%clk 0:02:52.5]}
11... Nb6 {[%clk 0:02:44.8]} 12. b3 {[%clk 0:02:49.6]} 12... N8d7 {[%clk
0:02:40.5]} 13. Nce2 {[%clk 0:02:47.8]} 13... Rc8 {[%clk 0:02:29.6]} 14. Ng3
{[%clk 0:02:44.9]} 14... d5 {[%clk 0:02:15.2]} 15. O-O {[%clk 0:02:36.6]} 15...
O-O {[%clk 0:02:12.3]} 16. Qh5 {[%clk 0:02:06.1]} 16... g6 {[%clk 0:01:48.4]}
17. Qd1 {[%clk 0:01:59.4]} 17... e5 {[%clk 0:01:39.1]} 18. Nde2 {[%clk
0:01:57.5]} 18... d4 {[%clk 0:01:38.7]} 19. Bd2 {[%clk 0:01:56.2]} 19... Qc7
{[%clk 0:01:36.6]} 20. Rc1 {[%clk 0:01:53.7]} 20... Nc5 {[%clk 0:01:35.1]} 21.
f4 {[%clk 0:01:46.3]} 21... exf4 {[%clk 0:01:30.5]} 22. Bxf4 {[%clk 0:01:44.7]}
22... Bd6 {[%clk 0:01:30.3]} 23. Bxd6 {[%clk 0:01:35.1]} 23... Qxd6 {[%clk
0:01:29.5]} 24. Qxd4 {[%clk 0:01:32.5]} 24... Qxd4+ {[%clk 0:01:11.5]} 25. Nxd4
{[%clk 0:01:33.4]} 25... Nbd7 {[%clk 0:01:09.7]} 26. Rcd1 {[%clk 0:01:09]} 26...
Ne5 {[%clk 0:01:08.4]} 27. Nde2 {[%clk 0:01:04.6]} 27... Ne6 {[%clk 0:00:55.5]}
28. Rd2 {[%clk 0:00:51.9]} 28... Ng4 {[%clk 0:00:38.9]} 29. Bh3 {[%clk
0:00:50.4]} 29... Ne3 {[%clk 0:00:38.4]} 30. Rxf7 {[%clk 0:00:43.3]} 30... Kxf7
{[%clk 0:00:30.6]} 31. Rd7+ {[%clk 0:00:43.5]} 31... Ke8 {[%clk 0:00:30.8]} 32.
Bxe6 {[%clk 0:00:36.1]} 32... Bc6 {[%clk 0:00:20.9]} 33. Rxh7 {[%clk 0:00:28.6]}
33... Rd8 {[%clk 0:00:21.2]} 34. h5 {[%clk 0:00:23.8]} 34... Rd6 {[%clk
0:00:18.8]} 35. Bh3 {[%clk 0:00:14.4]} 35... Rd1+ {[%clk 0:00:15.7]} 36. Nf1
{[%clk 0:00:08.8]} 36... Nxf1 {[%clk 0:00:14.5]} 37. hxg6 {[%clk 0:00:08]} 37...
Ne3+ {[%clk 0:00:13.3]} 38. Kh2 {[%clk 0:00:08.3]} 38... Rd2 {[%clk 0:00:12.4]}
39. g7 {[%clk 0:00:06.5]} 39... Rxe2+ {[%clk 0:00:11.8]} 40. Kg3 {[%clk
0:00:06.9]} 40... Rg8 {[%clk 0:00:11.4]} 41. Be6 {[%clk 0:00:07.4]} 41... Bd5
{[%clk 0:00:10.4]} 42. exd5 {[%clk 0:00:07]} 42... Nxd5 {[%clk 0:00:04.6]} 43.
Bxd5 {[%clk 0:00:05.8]} 43... Rxc2 {[%clk 0:00:03]} 44. Bxg8 {[%clk 0:00:05.9]}
44... Rc3+ {[%clk 0:00:02.1]} 45. Kg4 {[%clk 0:00:05.8]} 45... Ke7 {[%clk
0:00:02.5]} 46. Bd5 {[%clk 0:00:05.7]} 1-0

[Event "Early-Titled-Tuesday-Blitz-May-07-2024"]
[Site "Chess.com"]
[Date "2024.05.07"]
[Round "10"]
[White "vugarrasulov"]
[Black "GMSrinath"]
[Result "1-0"]
[WhiteElo "2986"]
[BlackElo "2845"]
[TimeControl "180+1"]
[EndTime "10:03:13 PDT"]
[Termination "vugarrasulov won by resignation"]

1. e4 {[%clk 0:03:00.9]} 1... c5 {[%clk 0:02:59.4]} 2. Nf3 {[%clk 0:03:00.4]}
2... d6 {[%clk 0:03:00.1]} 3. c3 {[%clk 0:02:59.5]} 3... Nf6 {[%clk 0:03:00.3]}
4. Be2 {[%clk 0:02:59.8]} 4... g6 {[%clk 0:02:59.9]} 5. O-O {[%clk 0:03:00.4]}
5... Bg7 {[%clk 0:03:00.6]} 6. Bb5+ {[%clk 0:03:00.9]} 6... Bd7 {[%clk 0:03:00]}
7. Bxd7+ {[%clk 0:03:00.8]} 7... Nbxd7 {[%clk 0:03:00.9]} 8. Re1 {[%clk
0:03:00.9]} 8... O-O {[%clk 0:03:01.3]} 9. d4 {[%clk 0:03:01.1]} 9... Rc8 {[%clk
0:02:59.3]} 10. h3 {[%clk 0:02:58.7]} 10... cxd4 {[%clk 0:02:52.6]} 11. cxd4
{[%clk 0:02:59.6]} 11... d5 {[%clk 0:02:53.2]} 12. e5 {[%clk 0:02:58.2]} 12...
Ne4 {[%clk 0:02:53.7]} 13. Nbd2 {[%clk 0:02:58.5]} 13... Nxd2 {[%clk 0:02:30.6]}
14. Bxd2 {[%clk 0:02:59.4]} 14... Nb8 {[%clk 0:02:31]} 15. h4 {[%clk 0:02:57.6]}
15... Nc6 {[%clk 0:02:14.7]} 16. h5 {[%clk 0:02:57.8]} 16... e6 {[%clk
0:02:13.2]} 17. Rc1 {[%clk 0:02:50.6]} 17... f6 {[%clk 0:01:48]} 18. hxg6 {[%clk
0:02:49]} 18... hxg6 {[%clk 0:01:47.8]} 19. exf6 {[%clk 0:02:49.4]} 19... Qxf6
{[%clk 0:01:47.7]} 20. Bc3 {[%clk 0:02:44.1]} 20... Rce8 {[%clk 0:01:40]} 21.
Rc2 {[%clk 0:02:43.7]} 21... Qf5 {[%clk 0:01:31.9]} 22. Rce2 {[%clk 0:02:42.5]}
22... Qg4 {[%clk 0:01:27.9]} 23. Re3 {[%clk 0:02:30.6]} 23... Bh6 {[%clk
0:01:23.6]} 24. Rd3 {[%clk 0:02:31.1]} 24... Bg7 {[%clk 0:01:24.2]} 25. b4
{[%clk 0:02:21.7]} 25... a6 {[%clk 0:01:22.7]} 26. a4 {[%clk 0:02:21.7]} 26...
Rf5 {[%clk 0:01:21.7]} 27. b5 {[%clk 0:02:20.9]} 27... axb5 {[%clk 0:01:21.1]}
28. axb5 {[%clk 0:02:21.8]} 28... Na7 {[%clk 0:01:20.1]} 29. Qa4 {[%clk
0:02:19.9]} 29... Nc8 {[%clk 0:01:19.6]} 30. Nh2 {[%clk 0:01:42.2]} 30... Qh4
{[%clk 0:01:04.5]} 31. Rf3 {[%clk 0:01:41.5]} 31... Nd6 {[%clk 0:00:57.3]} 32.
b6 {[%clk 0:01:33.2]} 32... Qd8 {[%clk 0:00:40.1]} 33. Rxf5 {[%clk 0:01:20.6]}
33... gxf5 {[%clk 0:00:39.1]} 34. Nf3 {[%clk 0:01:16.4]} 34... Qxb6 {[%clk
0:00:34.3]} 35. Bd2 {[%clk 0:00:45.4]} 35... Qb5 {[%clk 0:00:30.5]} 36. Qa3
{[%clk 0:00:41.6]} 36... Ne4 {[%clk 0:00:29.8]} 37. Bf4 {[%clk 0:00:41.5]} 37...
Rc8 {[%clk 0:00:24.4]} 38. Be5 {[%clk 0:00:40.5]} 38... Bf8 {[%clk 0:00:22.1]}
39. Qe3 {[%clk 0:00:38.2]} 39... Qb2 {[%clk 0:00:22.8]} 40. Rf1 {[%clk
0:00:34.1]} 40... Kh7 {[%clk 0:00:15.3]} 41. Ng5+ {[%clk 0:00:32.1]} 41... Kg6
{[%clk 0:00:11.3]} 42. Nxe6 {[%clk 0:00:31.5]} 42... Bh6 {[%clk 0:00:09.9]} 43.
Nf4+ {[%clk 0:00:32]} 43... Kf7 {[%clk 0:00:09.2]} 44. Qh3 {[%clk 0:00:31.7]}
44... Bxf4 {[%clk 0:00:06.5]} 45. Qxf5+ {[%clk 0:00:32.1]} 45... Ke7 {[%clk
0:00:06.8]} 46. Qxc8 {[%clk 0:00:22.9]} 46... Bxe5 {[%clk 0:00:07.3]} 47. dxe5
{[%clk 0:00:23.5]} 47... b5 {[%clk 0:00:07.7]} 48. e6 {[%clk 0:00:18.4]} 48...
Nf6 {[%clk 0:00:06.5]} 49. Re1 {[%clk 0:00:18.3]} 49... Ne4 {[%clk 0:00:05.7]}
50. Qd7+ {[%clk 0:00:18.2]} 50... Kf6 {[%clk 0:00:05.9]} 51. Qf7+ {[%clk
0:00:18.6]} 51... Ke5 {[%clk 0:00:06.8]} 52. Qg7+ {[%clk 0:00:18.1]} 1-0

[Event "Early-Titled-Tuesday-Blitz-May-07-2024"]
[Site "Chess.com"]
[Date "2024.05.07"]
[Round "10"]
[White "bazar-wokzal"]
[Black "Strong_Prodigy"]
[Result "1-0"]
[WhiteElo "2587"]
[BlackElo "2490"]
[TimeControl "180+1"]
[EndTime "10:03:15 PDT"]
[Termination "bazar-wokzal won by checkmate"]

1. e4 {[%clk 0:02:54.8]} 1... e5 {[%clk 0:03:00.2]} 2. Bc4 {[%clk 0:02:53.3]}
2... Nc6 {[%clk 0:02:59.8]} 3. f4 {[%clk 0:02:52.9]} 3... exf4 {[%clk 0:02:57]}
4. d4 {[%clk 0:02:52.3]} 4... Qh4+ {[%clk 0:02:53.3]} 5. Kf1 {[%clk 0:02:51.8]}
5... d5 {[%clk 0:02:31.4]} 6. Bxd5 {[%clk 0:02:50.9]} 6... Bg4 {[%clk
0:02:21.9]} 7. Qd3 {[%clk 0:02:45.1]} 7... Nge7 {[%clk 0:01:51.5]} 8. Bxf4
{[%clk 0:02:37.9]} 8... O-O-O {[%clk 0:01:44.3]} 9. Nc3 {[%clk 0:02:33.6]} 9...
Nb4 {[%clk 0:01:31]} 10. Qc4 {[%clk 0:02:19.5]} 10... Nexd5 {[%clk 0:00:45.9]}
11. exd5 {[%clk 0:02:10.9]} 11... Bd6 {[%clk 0:00:44.1]} 12. Bxd6 {[%clk
0:01:52]} 12... Rxd6 {[%clk 0:00:44.5]} 13. Ne4 {[%clk 0:01:43.9]} 13... Rxd5
{[%clk 0:00:22.4]} 14. Nf3 {[%clk 0:01:05.6]} 14... Bxf3 {[%clk 0:00:05.8]} 15.
gxf3 {[%clk 0:01:01.7]} 15... Qf4 {[%clk 0:00:06.2]} 16. Kg2 {[%clk 0:00:40.9]}
16... f5 {[%clk 0:00:02.6]} 17. Nf2 {[%clk 0:00:25.5]} 17... Qg5+ {[%clk
0:00:02.8]} 18. Kf1 {[%clk 0:00:24.1]} 18... Rhd8 {[%clk 0:00:02.4]} 19. Qxb4
{[%clk 0:00:22.5]} 19... Rxd4 {[%clk 0:00:02.8]} 20. Qe1 {[%clk 0:00:22.2]}
20... Qf4 {[%clk 0:00:02]} 21. Kg2 {[%clk 0:00:19.1]} 21... R4d6 {[%clk
0:00:01.2]} 22. Rg1 {[%clk 0:00:09.8]} 22... Rg6+ {[%clk 0:00:01.8]} 23. Kf1
{[%clk 0:00:10.1]} 23... Qxf3 {[%clk 0:00:02]} 24. Rxg6 {[%clk 0:00:09.3]} 24...
hxg6 {[%clk 0:00:02.6]} 25. Rd1 {[%clk 0:00:09.4]} 25... Rf8 {[%clk 0:00:01.7]}
26. Qe6+ {[%clk 0:00:09.4]} 26... Kb8 {[%clk 0:00:01.7]} 27. Qe7 {[%clk
0:00:09.8]} 27... Rc8 {[%clk 0:00:01.9]} 28. Rd8 {[%clk 0:00:09.6]} 28... Qc6
{[%clk 0:00:00.6]} 29. Rxc8+ {[%clk 0:00:09.1]} 29... Kxc8 {[%clk 0:00:01.5]}
30. Qf8+ {[%clk 0:00:09.4]} 30... Kd7 {[%clk 0:00:02.3]} 31. Qxg7+ {[%clk
0:00:09.8]} 31... Kc8 {[%clk 0:00:03.2]} 32. Qg8+ {[%clk 0:00:09.9]} 32... Kd7
{[%clk 0:00:03.3]} 33. Qf7+ {[%clk 0:00:10.1]} 33... Kc8 {[%clk 0:00:03.9]} 34.
c3 {[%clk 0:00:10.4]} 34... Qf3 {[%clk 0:00:03.2]} 35. Qg8+ {[%clk 0:00:09.5]}
35... Kd7 {[%clk 0:00:03.5]} 36. Qf7+ {[%clk 0:00:09.7]} 36... Kd6 {[%clk
0:00:02.9]} 37. Qxg6+ {[%clk 0:00:09.2]} 37... Kc5 {[%clk 0:00:03.4]} 38. Qg5
{[%clk 0:00:08.3]} 38... Kc4 {[%clk 0:00:02.3]} 39. Qd2 {[%clk 0:00:07.9]} 39...
Kc5 {[%clk 0:00:01.9]} 40. Qd4+ {[%clk 0:00:08]} 40... Kc6 {[%clk 0:00:02.3]}
41. Qc4+ {[%clk 0:00:08.3]} 41... Kb6 {[%clk 0:00:02]} 42. Qd4+ {[%clk
0:00:08.1]} 42... c5 {[%clk 0:00:01.9]} 43. Qd6+ {[%clk 0:00:07.9]} 43... Ka5
{[%clk 0:00:02]} 44. Qxc5+ {[%clk 0:00:07.7]} 44... b5 {[%clk 0:00:02.7]} 45.
Qxa7# {[%clk 0:00:07.4]} 1-0

[Event "Early-Titled-Tuesday-Blitz-May-07-2024"]
[Site "Chess.com"]
[Date "2024.05.07"]
[Round "10"]
[White "Silvederione"]
[Black "RodTwinkz"]
[Result "0-1"]
[WhiteElo "2510"]
[BlackElo "2681"]
[TimeControl "180+1"]
[EndTime "10:03:18 PDT"]
[Termination "RodTwinkz won on time"]

1. d4 {[%clk 0:03:00.9]} 1... Nf6 {[%clk 0:02:59.7]} 2. Nc3 {[%clk 0:03:01.3]}
2... d5 {[%clk 0:02:59.5]} 3. Bf4 {[%clk 0:03:01.6]} 3... a6 {[%clk 0:02:55.1]}
4. e3 {[%clk 0:03:01.5]} 4... g6 {[%clk 0:02:54.7]} 5. h4 {[%clk 0:03:00.8]}
5... h5 {[%clk 0:02:54.1]} 6. Nf3 {[%clk 0:03:00.7]} 6... Bg7 {[%clk 0:02:54.2]}
7. Ne5 {[%clk 0:02:55]} 7... Ng4 {[%clk 0:02:42]} 8. Nxg4 {[%clk 0:02:40.1]}
8... Bxg4 {[%clk 0:02:41.9]} 9. Be2 {[%clk 0:02:40]} 9... Bf5 {[%clk 0:02:34.4]}
10. Bd3 {[%clk 0:02:35.7]} 10... e6 {[%clk 0:02:31]} 11. Bxf5 {[%clk 0:02:31.3]}
11... gxf5 {[%clk 0:02:31.9]} 12. Qd3 {[%clk 0:02:26.2]} 12... Nd7 {[%clk
0:02:28.4]} 13. O-O-O {[%clk 0:02:08.2]} 13... c5 {[%clk 0:02:26.5]} 14. f3
{[%clk 0:01:59.9]} 14... Qa5 {[%clk 0:02:09.6]} 15. Kb1 {[%clk 0:01:52.5]} 15...
Rc8 {[%clk 0:02:01]} 16. Ne2 {[%clk 0:01:32.7]} 16... c4 {[%clk 0:01:18.5]} 17.
Qd2 {[%clk 0:01:25.6]} 17... Qxd2 {[%clk 0:01:12.3]} 18. Rxd2 {[%clk 0:01:26.5]}
18... b5 {[%clk 0:01:03.5]} 19. c3 {[%clk 0:01:25.4]} 19... a5 {[%clk
0:01:02.9]} 20. Ng3 {[%clk 0:01:20.3]} 20... Bf6 {[%clk 0:01:00.2]} 21. e4
{[%clk 0:01:13.9]} 21... fxe4 {[%clk 0:00:55.7]} 22. fxe4 {[%clk 0:01:14.8]}
22... Nb6 {[%clk 0:00:54.2]} 23. Re2 {[%clk 0:01:09.2]} 23... Kd7 {[%clk
0:00:53]} 24. Rf2 {[%clk 0:00:57.2]} 24... Be7 {[%clk 0:00:46.8]} 25. Be5 {[%clk
0:00:45.3]} 25... Rh7 {[%clk 0:00:45.8]} 26. Bf6 {[%clk 0:00:43.7]} 26... Rg8
{[%clk 0:00:37.5]} 27. Be5 {[%clk 0:00:37.6]} 27... f6 {[%clk 0:00:27.6]} 28.
Bf4 {[%clk 0:00:36.8]} 28... Rg4 {[%clk 0:00:27.4]} 29. Rh3 {[%clk 0:00:18.1]}
29... b4 {[%clk 0:00:24.7]} 30. Kc2 {[%clk 0:00:18.1]} 30... a4 {[%clk 0:00:21]}
31. Bd2 {[%clk 0:00:14.1]} 31... b3+ {[%clk 0:00:20.6]} 32. axb3 {[%clk
0:00:13.9]} 32... cxb3+ {[%clk 0:00:20.4]} 33. Kd1 {[%clk 0:00:13.3]} 33... Nc4
{[%clk 0:00:21.3]} 34. Bc1 {[%clk 0:00:13]} 34... dxe4 {[%clk 0:00:21.1]} 35.
Re2 {[%clk 0:00:11.6]} 35... f5 {[%clk 0:00:20.7]} 36. Rf2 {[%clk 0:00:09]}
36... Bxh4 {[%clk 0:00:16.3]} 37. Bf4 {[%clk 0:00:05.7]} 37... Rhg7 {[%clk
0:00:13.3]} 38. Nxh5 {[%clk 0:00:02.6]} 38... Bxf2 {[%clk 0:00:12.8]} 39. Nf6+
{[%clk 0:00:02.5]} 39... Kc6 {[%clk 0:00:12.2]} 40. Nxg4 {[%clk 0:00:02.2]}
40... Rxg4 {[%clk 0:00:13.1]} 41. Bh2 {[%clk 0:00:01.6]} 41... Rxg2 {[%clk
0:00:12.9]} 42. Rh7 {[%clk 0:00:01.5]} 42... Ne3+ {[%clk 0:00:12.5]} 43. Kc1
{[%clk 0:00:01.4]} 43... Be1 {[%clk 0:00:12.1]} 44. Rh6 {[%clk 0:00:00.6]} 44...
Kd5 {[%clk 0:00:12]} 45. Rh5 {[%clk 0:00:00.3]} 45... Kc4 {[%clk 0:00:11.9]} 46.
Rh3 {[%clk 0:00:00.3]} 46... Bd2+ {[%clk 0:00:10.5]} 0-1

[Event "Early-Titled-Tuesday-Blitz-May-07-2024"]
[Site "Chess.com"]
[Date "2024.05.07"]
[Round "10"]
[White "LamaChampetre"]
[Black "StelaSfw"]
[Result "1-0"]
[WhiteElo "2183"]
[BlackElo "1644"]
[TimeControl "180+1"]
[EndTime "10:03:21 PDT"]
[Termination "LamaChampetre won by resignation"]

1. d4 {[%clk 0:03:00.9]} 1... Nf6 {[%clk 0:02:58.5]} 2. c4 {[%clk 0:03:01.1]}
2... e6 {[%clk 0:02:58.9]} 3. Nf3 {[%clk 0:03:00.7]} 3... Bb4+ {[%clk
0:02:59.4]} 4. Nc3 {[%clk 0:03:00.9]} 4... Bxc3+ {[%clk 0:02:59.9]} 5. bxc3
{[%clk 0:03:01.8]} 5... O-O {[%clk 0:02:59.7]} 6. Qc2 {[%clk 0:03:01.4]} 6... c6
{[%clk 0:02:58.5]} 7. e4 {[%clk 0:03:01.5]} 7... h6 {[%clk 0:02:57.5]} 8. e5
{[%clk 0:03:01.5]} 8... Ne8 {[%clk 0:02:57.4]} 9. Bd3 {[%clk 0:03:01.7]} 9... d6
{[%clk 0:02:57.1]} 10. h4 {[%clk 0:03:01.2]} 10... dxe5 {[%clk 0:02:57.1]} 11.
dxe5 {[%clk 0:03:00.9]} 11... Nd7 {[%clk 0:02:56.9]} 12. Be3 {[%clk 0:02:44.9]}
12... b6 {[%clk 0:02:55.5]} 13. Rd1 {[%clk 0:02:44.9]} 13... Qe7 {[%clk
0:02:54.1]} 14. Bg5 {[%clk 0:02:31.2]} 14... f6 {[%clk 0:02:53.3]} 15. exf6
{[%clk 0:02:26.8]} 15... Nexf6 {[%clk 0:02:52.2]} 16. Be3 {[%clk 0:02:24.8]}
16... Ng4 {[%clk 0:02:51.2]} 17. Bd4 {[%clk 0:02:12.2]} 17... e5 {[%clk
0:02:44.2]} 18. Be3 {[%clk 0:02:10.5]} 18... Nxe3 {[%clk 0:02:43.7]} 19. fxe3
{[%clk 0:02:10.7]} 19... Nc5 {[%clk 0:02:42.2]} 20. Bg6 {[%clk 0:02:04.4]} 20...
Bg4 {[%clk 0:02:41.6]} 21. Be4 {[%clk 0:01:26.1]} 21... Nxe4 {[%clk 0:02:40.8]}
22. Qxe4 {[%clk 0:01:25]} 22... Bxf3 {[%clk 0:02:36.3]} 23. gxf3 {[%clk
0:01:24.7]} 23... Rac8 {[%clk 0:02:29.4]} 24. Rg1 {[%clk 0:01:21.9]} 24... Qf6
{[%clk 0:02:18.6]} 25. Rd7 {[%clk 0:01:18.3]} 25... Rf7 {[%clk 0:02:10.4]} 26.
Rxf7 {[%clk 0:01:00.4]} 26... Kxf7 {[%clk 0:02:10.5]} 27. h5 {[%clk 0:00:55.9]}
27... Rc7 {[%clk 0:02:07.8]} 28. Rg6 {[%clk 0:00:53.4]} 28... Qe7 {[%clk
0:01:51.2]} 29. Qf5+ {[%clk 0:00:47.5]} 29... Kg8 {[%clk 0:01:43.1]} 30. Re6
{[%clk 0:00:47.6]} 30... Qh4+ {[%clk 0:01:16.2]} 31. Ke2 {[%clk 0:00:31]} 31...
Qh2+ {[%clk 0:01:12.9]} 32. Kd3 {[%clk 0:00:19.9]} 32... Rd7+ {[%clk 0:01:08.8]}
33. Ke4 {[%clk 0:00:20.2]} 33... Qh4+ {[%clk 0:01:01.7]} 34. Kxe5 {[%clk
0:00:17.3]} 34... Re7 {[%clk 0:00:34.6]} 35. Rxe7 {[%clk 0:00:13.2]} 35... Qxe7+
{[%clk 0:00:34.8]} 36. Qe6+ {[%clk 0:00:11.7]} 36... Kf8 {[%clk 0:00:29.8]} 37.
f4 {[%clk 0:00:09]} 37... c5 {[%clk 0:00:23.5]} 38. Qxe7+ {[%clk 0:00:05.8]}
38... Kxe7 {[%clk 0:00:23.7]} 39. f5 {[%clk 0:00:05.6]} 39... a6 {[%clk
0:00:21.6]} 40. e4 {[%clk 0:00:05]} 40... b5 {[%clk 0:00:14.5]} 41. cxb5 {[%clk
0:00:04.9]} 41... axb5 {[%clk 0:00:14.3]} 42. Kd5 {[%clk 0:00:04]} 42... b4
{[%clk 0:00:12.9]} 43. cxb4 {[%clk 0:00:03.7]} 43... c4 {[%clk 0:00:13.2]} 44.
Kxc4 {[%clk 0:00:03.4]} 44... Kf6 {[%clk 0:00:12.6]} 45. b5 {[%clk 0:00:03.9]}
45... Kg5 {[%clk 0:00:12.9]} 46. b6 {[%clk 0:00:04.4]} 46... Kxh5 {[%clk
0:00:13.3]} 47. b7 {[%clk 0:00:05.3]} 47... Kg4 {[%clk 0:00:13.9]} 48. b8=Q
{[%clk 0:00:05.7]} 48... h5 {[%clk 0:00:14.8]} 49. Qd6 {[%clk 0:00:06.2]} 49...
h4 {[%clk 0:00:14.6]} 50. Qg6+ {[%clk 0:00:07.1]} 50... Kh3 {[%clk 0:00:14.4]}
51. Qxg7 {[%clk 0:00:08]} 51... Kh2 {[%clk 0:00:14.2]} 52. Qh7 {[%clk
0:00:08.9]} 52... h3 {[%clk 0:00:14.3]} 53. Qxh3+ {[%clk 0:00:09.6]} 53... Kxh3
{[%clk 0:00:14.3]} 54. f6 {[%clk 0:00:10.5]} 54... Kg3 {[%clk 0:00:14.8]} 55. f7
{[%clk 0:00:11.4]} 55... Kf4 {[%clk 0:00:15]} 56. f8=Q+ {[%clk 0:00:12]} 56...
Kxe4 {[%clk 0:00:15.9]} 57. Qc5 {[%clk 0:00:12.1]} 1-0